[Event "XIV American Continental-ch 2019"]
[Site "Sao Paulo"]
[Date "2019.07.06"]
[Round "1.11"]
[White "Toth, Peter"]
[Black "Mekhitarian, Krikor Sevag"]
[Result "0-1"]
[ECO "D03"]
[WhiteElo "2066"]
[BlackElo "2545"]
[Annotator "RC"]
[PlyCount "138"]
[EventDate "2019.07.05"]
[EventType "swiss"]
[EventCountry "BRA"]
[SourceTitle "playchess.com"]
[Source "ChessBase"]
[SourceQuality "1"]
[TimeControl "40/5400+30:1800+30"]

1. d4 {[%emt 0:00:00]} Nf6 {[%emt 0:00:00]} 2. Bg5 {[%emt 0:00:05]} d5 {[%emt 0:00:19]} 3. Nf3 {[%emt 0:00:30]} Ne4 {[%emt 0:01:07]} 4. Bf4 {[%emt 0:00:28]} c5 {[%emt 0:00:02]} 5. e3 {[%emt 0:01:51]} Qb6 {[%emt 0:00:40]} 6. Qc1 {[%emt 0:00:38]} Nc6 {[%emt 0:00:30]} 7. c3 {[%emt 0:02:09]} Bf5 {[%emt 0:00:23]} 8. Nbd2 {[%emt 0:01:48]} Rc8 {[%emt 0:05:37]} 9. Nxe4 {[%emt 0:09:43]} Bxe4 {[%emt 0:07:39]} 10. Be2 {[%emt 0:06:20]} cxd4 {[%emt 0:01:29]} 11. exd4 {[%emt 0:05:32]} e6 {[%emt 0:07:38]} 12. Qd2 {[%emt 0:01:42]} Be7 {[%emt 0:00:43]} 13. O-O {[%emt 0:00:34]} O-O {[%emt 0:00:04]} 14. Ne5 {[%emt 0:04:43]} Nxe5 {[%emt 0:02:34]} 15. Bxe5 {[%emt 0:02:11]} Rc6 {[%emt 0:00:21]} 16. a4 {[%emt 0:04:37]} a6 {[%emt 0:00:49]} 17. a5 {[%emt 0:02:12]} Qd8 {[%emt 0:00:25]} 18. Rfd1 {[%emt 0:09:30]} h6 {[%emt 0:04:15]} 19. f3 {[%emt 0:03:22]} Bg6 {[%emt 0:02:51]} 20. Bf4 {[%emt 0:07:43]} Qd7 {[%emt 0:03:15]} 21. Bd3 {[%emt 0:05:44]} Bxd3 {[%emt 0:00:15]} 22. Qxd3 {[%emt 0:00:09]} Rfc8 {[%emt 0:00:27]} 23. Bd2 {[%emt 0:00:27]} Bd6 {[%emt 0:02:01]} 24. g3 {[%emt 0:02:24]} Be7 {[%emt 0:08:11]} 25. Kg2 {[%emt 0:01:04]} Rc4 {[%emt 0:01:56]} 26. b3 {[%emt 0:04:59]} R4c6 {[%emt 0:02:42]} 27. Ra2 {[%emt 0:01:45]} Qc7 {[%emt 0:01:53]} 28. f4 {[%emt 0:04:34]} Qd7 {[%emt 0:01:50]} 29. b4 {[%emt 0:02:52]} Rc4 {[%emt 0:00:25]} 30. Re1 {[%emt 0:03:22]} Bf6 {[%emt 0:00:34]} 31. Re3 {[%emt 0:00:43]} g6 {[%emt 0:04:38]} 32. g4 {[%emt 0:02:20]} Bg7 {[%emt 0:00:22]} 33. h3 {[%emt 0:00:22]} R4c7 {[%emt 0:06:00]} 34. Rf3 {[%emt 0:00:25]} Qc6 {[%emt 0:00:15]} 35. Rb2 {[%emt 0:01:07]} Qc4 {[%emt 0:04:26]} 36. Qe3 {[%emt 0:00:37]} Re8 {[%emt 0:01:35]} 37. h4 {[%emt 0:00:33]} Qb5 {[%emt 0:01:04]} 38. h5 {[%emt 0:00:32]} f5 {[%emt 0:06:25]} 39. Rg3 {[%emt 0:01:45]} fxg4 {[%emt 0:00:16]} 40. Rxg4 {[%emt 0:00:21]} gxh5 {[%emt 0:00:18]} 41. Rg3 {[%emt 0:33:12]} Rf7 {[%emt 0:33:18]} 42. Rb1 {[%emt 0:01:34]} Rf5 {[%emt 0:07:29]} 43. Kh3 {[%emt 0:01:09]} Kh7 {[%emt 0:02:24]} 44. Rbg1 {[%emt 0:02:25]} Bf6 {[%emt 0:00:25]} 45. R1g2 {[%emt 0:01:04]} Qd7 {[%emt 0:01:06]} 46. Qe2 {[%emt 0:00:59]} h4 {[%emt 0:06:10]} 47. Rg6 {[%emt 0:00:00]} Qf7 {[%emt 0:00:00]} 48. R6g4 {[%emt 0:00:00]} Qd7 {[%emt 0:00:00]} 49. Kh2 {[%emt 0:00:00]} Qc7 {[%emt 0:00:00]} 50. Kh3 {[%emt 0:00:00]} Qf7 {[%emt 0:00:00]} 51. Qd3 {[%emt 0:00:00]} Kh8 {[%emt 0:00:00]} 52. Kh2 {[%emt 0:00:00]} Qc7 {[%emt 0:00:00]} 53. Kh3 {[%emt 0:00:00]} Qh7 {[%emt 0:00:00]} 54. Qe2 {[%emt 0:00:00]} Qf7 {[%emt 0:00:00]} 55. Kh2 {[%emt 0:00:00]} Rc8 {[%emt 0:00:00]} 56. Qd3 {[%emt 0:00:00]} Rf8 {[%emt 0:00:00]} 57. Rg1 {[%emt 0:00:00]} Qc7 {[%emt 0:00:00]} 58. Kh1 {[%emt 0:00:00]} Qe7 {[%emt 0:02:59]} 59. Kh2 {[%emt 0:00:00]} Kh7 {[%emt 0:01:26]} 60. Kh1 {[%emt 0:00:00]} Rf7 {[%emt 0:00:26]} 61. Kh2 {[%emt 0:00:00]} Rg7 {[%emt 0:00:24]} 62. Qe2 {[%emt 0:00:00]} Rxg4 {[%emt 0:00:15]} 63. Qxg4 {[%emt 0:00:00]} Qf7 {[%emt 0:00:06]} 64. Kh3 {[%emt 0:00:00]} Be7 {[%emt 0:00:25]} 65. Rf1 {[%emt 0:00:00]} Rf6 {[%emt 0:01:05]} 66. Rg1 {[%emt 0:03:52]} Rg6 {[%emt 0:00:17]} 67. Qd1 {[%emt 0:01:38]} Qf5+ {[%emt 0:03:25]} 68. Kh2 {[%emt 0:00:21]} Rxg1 {[%emt 0:01:00]} 69. Qxg1 {[%emt 0:01:08]} Qd3 {[%emt 0:05:36]} 0-1

[Event "XIV American Continental-ch 2019"]
[Site "Sao Paulo"]
[Date "2019.07.06"]
[Round "1.12"]
[White "Lima, Darcy"]
[Black "Ermel, Francisco Roberto"]
[Result "1-0"]
[ECO "E73"]
[WhiteElo "2543"]
[BlackElo "2064"]
[Annotator "RC"]
[PlyCount "43"]
[EventDate "2019.07.05"]
[EventType "swiss"]
[EventCountry "BRA"]
[SourceTitle "playchess.com"]
[Source "ChessBase"]
[SourceQuality "1"]
[TimeControl "40/5400+30:1800+30"]

1. d4 {[%emt 0:01:05]} Nf6 {[%emt 0:00:00]} 2. c4 {[%emt 0:00:05]} g6 {[%emt 0:00:00]} 3. Nc3 {[%emt 0:00:38]} Bg7 {[%emt 0:00:04]} 4. e4 {[%emt 0:00:47]} d6 {[%emt 0:00:22]} 5. Be2 {[%emt 0:00:05]} O-O {[%emt 0:00:22]} 6. Be3 {[%emt 0:00:03]} e5 {[%emt 0:07:29]} 7. d5 {[%emt 0:00:07]} a5 {[%emt 0:03:09]} 8. g4 {[%emt 0:00:12]} Na6 {[%emt 0:07:24]} 9. g5 {[%emt 0:02:57]} Ne8 {[%emt 0:00:20]} 10. h4 {[%emt 0:00:10]} f5 {[%emt 0:02:40]} 11. gxf6 {[%emt 0:01:35]} Bxf6 {[%emt 0:02:01]} 12. Nf3 {[%emt 0:00:36]} Bg4 {[%emt 0:18:08]} 13. Ng5 {[%emt 0:01:19]} Bxe2 {[%emt 0:00:29]} 14. Qxe2 {[%emt 0:00:08]} Ng7 {[%emt 0:01:31]} 15. O-O-O {[%emt 0:01:13]} Qe7 {[%emt 0:05:13]} 16. Rdg1 {[%emt 0:03:49]} Nc5 {[%emt 0:05:22]} 17. h5 {[%emt 0:04:17]} h6 {[%emt 0:26:40]} 18. Nh7 {[%emt 0:06:38]} Kxh7 {[%emt 0:02:01]} 19. hxg6+ {[%emt 0:00:05]} Kg8 {[%emt 0:00:09]} 20. Rxh6 {[%emt 0:00:05]} Ne8 {[%emt 0:01:16]} 21. g7 {[%emt 0:06:43]} Bxg7 {[%emt 0:06:12]} 22. Qh5 {[%emt 0:00:12]} 1-0

[Event "XIV American Continental-ch 2019"]
[Site "Sao Paulo"]
[Date "2019.07.06"]
[Round "1.14"]
[White "Krysa, Leandro"]
[Black "Markzon, Gregory"]
[Result "1-0"]
[ECO "E63"]
[WhiteElo "2517"]
[BlackElo "2059"]
[Annotator "RC"]
[PlyCount "67"]
[EventDate "2019.07.05"]
[EventType "swiss"]
[EventCountry "BRA"]
[SourceTitle "playchess.com"]
[Source "ChessBase"]
[SourceQuality "1"]
[TimeControl "40/5400+30:1800+30"]

1. d4 {[%emt 0:00:00]} Nf6 {[%emt 0:00:00]} 2. c4 {[%emt 0:00:00]} g6 {[%emt 0:00:00]} 3. Nf3 {[%emt 0:00:28]} Bg7 {[%emt 0:00:00]} 4. g3 {[%emt 0:00:07]} O-O {[%emt 0:00:00]} 5. Bg2 {[%emt 0:00:09]} d6 {[%emt 0:00:05]} 6. O-O {[%emt 0:00:15]} Nc6 {[%emt 0:00:43]} 7. Nc3 {[%emt 0:00:17]} a6 {[%emt 0:00:31]} 8. Bf4 {[%emt 0:00:55]} Bf5 {[%emt 0:03:08]} 9. Rc1 {[%emt 0:01:35]} Ne4 {[%emt 0:02:21]} 10. Nxe4 {[%emt 0:04:23]} Bxe4 {[%emt 0:00:08]} 11. d5 {[%emt 0:00:50]} Nb8 {[%emt 0:10:09]} 12. Qd2 {[%emt 0:06:09]} c5 {[%emt 0:06:44]} 13. h4 {[%emt 0:03:31]} Nd7 {[%emt 0:03:25]} 14. h5 {[%emt 0:04:09]} b5 {[%emt 0:00:56]} 15. hxg6 {[%emt 0:02:29]} hxg6 {[%emt 0:00:33]} 16. Ng5 {[%emt 0:01:36]} Bxg2 {[%emt 0:00:52]} 17. Kxg2 {[%emt 0:00:05]} Nf6 {[%emt 0:01:22]} 18. b3 {[%emt 0:13:38]} Qd7 {[%emt 0:02:45]} 19. Rh1 {[%emt 0:05:23]} Rfb8 {[%emt 0:01:49]} 20. Rh4 {[%emt 0:01:45]} bxc4 {[%emt 0:01:22]} 21. bxc4 {[%emt 0:00:43]} Qb7 {[%emt 0:04:35]} 22. Rch1 {[%emt 0:05:33]} e5 {[%emt 0:05:50]} 23. Be3 {[%emt 0:09:06]} Qd7 {[%emt 0:18:19]} 24. Nh7 {[%emt 0:05:51]} Ng4 {[%emt 0:04:23]} 25. Bg5 {[%emt 0:04:58]} f6 {[%emt 0:04:14]} 26. f3 {[%emt 0:01:49]} fxg5 {[%emt 0:00:36]} 27. Rxg4 {[%emt 0:00:46]} e4 {[%emt 0:02:54]} 28. Rxe4 {[%emt 0:03:51]} g4 {[%emt 0:01:01]} 29. Rxg4 {[%emt 0:03:19]} Rb2 {[%emt 0:00:30]} 30. Qd3 {[%emt 0:00:41]} Qf5 {[%emt 0:01:00]} 31. Re4 {[%emt 0:01:07]} Rxa2 {[%emt 0:03:22]} 32. g4 {[%emt 0:03:05]} Qd7 {[%emt 0:00:33]} 33. Re6 {[%emt 0:01:54]} Re8 {[%emt 0:01:03]} 34. Nf6+ {[%emt 0:00:32]} 1-0

[Event "XIV American Continental-ch 2019"]
[Site "Sao Paulo"]
[Date "2019.07.06"]
[Round "1.16"]
[White "Di Berardino, Diego Rafael"]
[Black "Santos Filho, Tadeu Sousa"]
[Result "1-0"]
[ECO "C03"]
[WhiteElo "2506"]
[BlackElo "2057"]
[Annotator "RC"]
[PlyCount "57"]
[EventDate "2019.07.05"]
[EventType "swiss"]
[EventCountry "BRA"]
[SourceTitle "playchess.com"]
[Source "ChessBase"]
[SourceQuality "1"]
[TimeControl "40/5400+30:1800+30"]

1. e4 {[%emt 0:00:39]} e6 {[%emt 0:00:33]} 2. d4 {[%emt 0:00:08]} d5 {[%emt 0:00:07]} 3. Nd2 {[%emt 0:00:47]} Be7 {[%emt 0:00:19]} 4. Bd3 {[%emt 0:00:32]} c5 {[%emt 0:01:35]} 5. dxc5 {[%emt 0:00:06]} Nf6 {[%emt 0:00:25]} 6. Qe2 {[%emt 0:00:05]} O-O {[%emt 0:02:54]} 7. Ngf3 {[%emt 0:00:23]} a5 {[%emt 0:00:46]} 8. O-O {[%emt 0:01:23]} Na6 {[%emt 0:00:19]} 9. e5 {[%emt 0:00:54]} Nd7 {[%emt 0:00:18]} 10. Nb3 {[%emt 0:00:19]} a4 {[%emt 0:07:12]} 11. Nbd4 {[%emt 0:00:19]} Naxc5 {[%emt 0:00:13]} 12. Be4 Nxe4 {[%emt 0:12:25]} 13. c4 {[%emt 0:10:10]} Ndc5 {[%emt 0:00:36]} 14. Bf4 {[%emt 0:09:36]} Qb6 {[%emt 0:06:41]} 15. Rac1 {[%emt 0:01:58]} Qa5 {[%emt 0:07:04]} 16. Qe3 {[%emt 0:08:03]} h6 {[%emt 0:24:43]} 17. h3 {[%emt 0:02:34]} Kh7 {[%emt 0:00:55]} 18. Rfd1 {[%emt 0:02:47]} Qb4 {[%emt 0:05:31]} 19. Rc2 {[%emt 0:08:00]} Qa5 {[%emt 0:03:46]} 20. Ne1 {[%emt 0:02:50]} Kg8 {[%emt 0:03:59]} 21. f3 {[%emt 0:11:45]} Ng5 {[%emt 0:00:26]} 22. Rdc1 {[%emt 0:01:10]} Na6 {[%emt 0:01:24]} 23. a3 {[%emt 0:01:52]} Nc7 {[%emt 0:00:47]} 24. Nd3 {[%emt 0:02:53]} Rd8 {[%emt 0:04:08]} 25. Qf2 {[%emt 0:01:44]} Nh7 {[%emt 0:01:46]} 26. Bd2 {[%emt 0:00:51]} Qa7 {[%emt 0:00:25]} 27. Be3 {[%emt 0:03:56]} Qb8 {[%emt 0:01:30]} 28. c5 {[%emt 0:06:24]} Na6 {[%emt 0:01:49]} 29. Nb5 {[%emt 0:00:30]} 1-0

[Event "XIV American Continental-ch 2019"]
[Site "Sao Paulo"]
[Date "2019.07.06"]
[Round "1.18"]
[White "Cubas, Jose Fernando"]
[Black "Lage, Pedro Ferreira"]
[Result "1-0"]
[ECO "C02"]
[WhiteElo "2493"]
[BlackElo "2050"]
[Annotator "RC"]
[PlyCount "55"]
[EventDate "2019.07.05"]
[EventType "swiss"]
[EventCountry "BRA"]
[SourceTitle "playchess.com"]
[Source "ChessBase"]
[SourceQuality "1"]
[TimeControl "40/5400+30:1800+30"]

1. e4 {[%emt 0:03:39]} e6 {[%emt 0:03:42]} 2. d4 {[%emt 0:00:04]} d5 {[%emt 0:00:15]} 3. e5 {[%emt 0:00:04]} c5 {[%emt 0:00:20]} 4. c3 {[%emt 0:00:04]} Nc6 {[%emt 0:00:13]} 5. Nf3 {[%emt 0:00:03]} Qb6 {[%emt 0:00:24]} 6. a3 {[%emt 0:00:05]} Bd7 {[%emt 0:00:34]} 7. b4 {[%emt 0:01:15]} cxd4 {[%emt 0:00:16]} 8. cxd4 {[%emt 0:00:04]} Rc8 {[%emt 0:00:26]} 9. Be3 {[%emt 0:02:28]} Nge7 {[%emt 0:01:34]} 10. Bd3 {[%emt 0:00:59]} Nf5 {[%emt 0:03:06]} 11. O-O {[%emt 0:00:15]} Be7 {[%emt 1:24:40]} 12. Nbd2 {[%emt 1:27:00]} O-O 13. Nb3 {[%emt 0:00:00]} Qd8 {[%emt 0:00:00]} 14. Bd2 {[%emt 0:00:00]} f6 {[%emt 0:00:00]} 15. b5 {[%emt 0:00:00]} Nb8 {[%emt 0:00:00]} 16. Qb1 {[%emt 0:00:00]} g6 {[%emt 0:00:00]} 17. Re1 {[%emt 0:00:00]} fxe5 {[%emt 0:00:00]} 18. Nxe5 {[%emt 0:00:00]} Be8 {[%emt 0:00:00]} 19. Nf3 {[%emt 0:03:30]} Bf7 {[%emt 0:04:00]} 20. Bb4 {[%emt 0:00:00]} Nd6 {[%emt 0:00:00]} 21. Nc5 {[%emt 0:00:00]} a5 {[%emt 0:01:00]} 22. Bd2 {[%emt 0:00:00]} Nc4 {[%emt 0:00:00]} 23. Bh6 {[%emt 0:00:00]} Bxc5 {[%emt 0:00:00]} 24. dxc5 Rxc5 25. Bxc4 {[%emt 0:03:00]} dxc4 26. Bxf8 {[%emt 0:00:00]} Kxf8 {[%emt 0:00:17]} 27. Qe4 {[%emt 0:00:00]} Qd5 {[%emt 0:02:07]} 28. Qf4 {[%emt 0:01:30]} 1-0

[Event "XIV American Continental-ch 2019"]
[Site "Sao Paulo"]
[Date "2019.07.06"]
[Round "1.20"]
[White "Hambleton, Aman"]
[Black "De Arruda Filho, Nivaldo Jesus"]
[Result "1-0"]
[ECO "D85"]
[WhiteElo "2487"]
[BlackElo "2045"]
[Annotator "RC"]
[PlyCount "45"]
[EventDate "2019.07.05"]
[EventType "swiss"]
[EventCountry "BRA"]
[SourceTitle "playchess.com"]
[Source "ChessBase"]
[SourceQuality "1"]
[TimeControl "40/5400+30:1800+30"]

1. d4 {[%emt 0:05:22]} Nf6 {[%emt 0:00:50]} 2. c4 {[%emt 0:00:39]} g6 {[%emt 0:00:08]} 3. Nc3 {[%emt 0:00:16]} d5 {[%emt 0:00:11]} 4. cxd5 {[%emt 0:02:05]} Nxd5 {[%emt 0:00:14]} 5. Bd2 {[%emt 0:00:15]} Bg7 {[%emt 0:01:33]} 6. e4 {[%emt 0:00:20]} Nb6 {[%emt 0:05:50]} 7. Be3 {[%emt 0:00:10]} O-O {[%emt 0:01:40]} 8. h3 {[%emt 0:00:15]} Na6 {[%emt 0:08:31]} 9. Nf3 {[%emt 0:03:49]} c6 {[%emt 0:15:23]} 10. Bxa6 {[%emt 0:09:23]} bxa6 {[%emt 0:00:10]} 11. O-O {[%emt 0:00:12]} Nc4 {[%emt 0:08:20]} 12. Qe2 {[%emt 0:01:35]} Nd6 {[%emt 0:05:53]} 13. Rfe1 {[%emt 0:16:29]} Qa5 {[%emt 0:11:15]} 14. Rac1 {[%emt 0:05:03]} Rb8 {[%emt 0:08:12]} 15. b3 {[%emt 0:02:20]} Bb7 {[%emt 0:06:26]} 16. Na4 {[%emt 0:03:37]} Nxe4 {[%emt 0:14:03]} 17. Bf4 {[%emt 0:00:54]} Nd6 {[%emt 0:00:12]} 18. Qxe7 {[%emt 0:00:19]} Nf5 {[%emt 0:00:27]} 19. Qc5 {[%emt 0:00:10]} Qxc5 {[%emt 0:01:45]} 20. Nxc5 {[%emt 0:00:07]} Nxd4 {[%emt 0:01:27]} 21. Nxd4 {[%emt 0:04:19]} Bxd4 {[%emt 0:00:12]} 22. Bxb8 {[%emt 0:00:55]} Rxb8 {[%emt 0:01:14]} 23. Re7 {[%emt 0:01:18]} 1-0

[Event "XIV American Continental-ch 2019"]
[Site "Sao Paulo"]
[Date "2019.07.06"]
[Round "1.21"]
[White "Urquiza, Marcello de Albuquer"]
[Black "Vazquez, Guillermo"]
[Result "0-1"]
[ECO "B53"]
[WhiteElo "2043"]
[BlackElo "2483"]
[Annotator "RC"]
[PlyCount "68"]
[EventDate "2019.07.05"]
[EventType "swiss"]
[EventCountry "BRA"]
[SourceTitle "playchess.com"]
[Source "ChessBase"]
[SourceQuality "1"]
[TimeControl "40/5400+30:1800+30"]

1. e4 {[%emt 0:00:18]} c5 {[%emt 0:00:03]} 2. Nf3 {[%emt 0:00:42]} d6 {[%emt 0:01:02]} 3. d4 {[%emt 0:00:23]} cxd4 4. Qxd4 {[%emt 0:00:07]} Nf6 {[%emt 0:02:01]} 5. Nc3 {[%emt 0:01:39]} e5 {[%emt 0:03:15]} 6. Qd3 {[%emt 0:03:02]} h6 {[%emt 0:06:36]} 7. Nd2 {[%emt 0:01:16]} Be7 {[%emt 0:07:47]} 8. Nc4 {[%emt 0:15:15]} O-O {[%emt 0:01:04]} 9. Be2 {[%emt 0:01:03]} Be6 {[%emt 0:07:36]} 10. O-O {[%emt 0:10:08]} Nc6 {[%emt 0:01:14]} 11. f4 {[%emt 0:13:05]} Rc8 {[%emt 0:07:29]} 12. fxe5 {[%emt 0:14:20]} dxe5 {[%emt 0:02:13]} 13. Qxd8 {[%emt 0:05:08]} Rfxd8 {[%emt 0:00:15]} 14. Ne3 {[%emt 0:03:33]} Bc5 {[%emt 0:09:26]} 15. Kh1 {[%emt 0:01:15]} Nb4 {[%emt 0:01:22]} 16. Bd1 {[%emt 0:04:35]} Bd4 {[%emt 0:00:36]} 17. a3 {[%emt 0:05:27]} Nc6 {[%emt 0:05:50]} 18. Bf3 {[%emt 0:00:30]} Bxc3 {[%emt 0:01:43]} 19. bxc3 {[%emt 0:00:18]} Na5 {[%emt 0:02:41]} 20. Nd1 {[%emt 0:07:38]} Nc4 {[%emt 0:02:10]} 21. Kg1 {[%emt 0:02:36]} Nd6 {[%emt 0:05:35]} 22. Nf2 {[%emt 0:03:33]} Rxc3 {[%emt 0:02:49]} 23. Bb2 {[%emt 0:00:07]} Rxc2 {[%emt 0:00:08]} 24. Bxe5 {[%emt 0:00:09]} Nc4 {[%emt 0:00:23]} 25. Bxf6 {[%emt 0:02:58]} gxf6 {[%emt 0:00:03]} 26. Rfd1 {[%emt 0:01:57]} Rc8 {[%emt 0:02:55]} 27. Nd3 {[%emt 0:01:05]} Nb2 {[%emt 0:03:04]} 28. Nxb2 {[%emt 0:00:13]} Rxb2 {[%emt 0:00:03]} 29. Rac1 {[%emt 0:01:05]} Rxc1 {[%emt 0:00:15]} 30. Rxc1 {[%emt 0:00:05]} b5 {[%emt 0:00:37]} 31. Rc7 {[%emt 0:01:17]} a5 {[%emt 0:00:18]} 32. Ra7 {[%emt 0:00:13]} a4 {[%emt 0:01:14]} 33. Rc7 {[%emt 0:00:53]} b4 {[%emt 0:00:43]} 34. axb4 {[%emt 0:00:29]} a3 {[%emt 0:00:07]} 0-1

[Event "XIV American Continental-ch 2019"]
[Site "Sao Paulo"]
[Date "2019.07.06"]
[Round "1.22"]
[White "Santiago, Yago De Moura"]
[Black "Ferreira, Kleber Victor"]
[Result "1-0"]
[ECO "A27"]
[WhiteElo "2473"]
[BlackElo "2038"]
[Annotator "RC"]
[PlyCount "65"]
[EventDate "2019.07.05"]
[EventType "swiss"]
[EventCountry "BRA"]
[SourceTitle "playchess.com"]
[Source "ChessBase"]
[SourceQuality "1"]
[TimeControl "40/5400+30:1800+30"]

1. c4 {[%emt 0:00:25]} e5 {[%emt 0:00:00]} 2. Nc3 {[%emt 0:00:10]} Nc6 {[%emt 0:00:00]} 3. Nf3 {[%emt 0:00:20]} f5 {[%emt 0:00:08]} 4. d4 {[%emt 0:00:24]} e4 {[%emt 0:00:37]} 5. Ng5 {[%emt 0:00:14]} Bb4 {[%emt 0:01:20]} 6. Nh3 {[%emt 0:00:43]} Nf6 {[%emt 0:01:02]} 7. e3 {[%emt 0:00:26]} O-O {[%emt 0:00:36]} 8. Be2 {[%emt 0:00:39]} Bxc3+ {[%emt 0:01:24]} 9. bxc3 {[%emt 0:00:10]} d6 {[%emt 0:00:54]} 10. Ba3 {[%emt 0:06:16]} Ne7 {[%emt 0:06:59]} 11. Nf4 {[%emt 1:25:43]} c6 {[%emt 0:03:18]} 12. Qb3 {[%emt 0:00:00]} Kh8 {[%emt 0:05:07]} 13. h4 b6 14. c5 {[%emt 0:00:00]} bxc5 {[%emt 0:07:21]} 15. dxc5 {[%emt 0:00:00]} d5 {[%emt 0:02:04]} 16. Rd1 {[%emt 0:00:00]} Ng6 {[%emt 0:01:11]} 17. Nxg6+ {[%emt 0:00:00]} hxg6 {[%emt 0:00:06]} 18. c4 {[%emt 0:00:00]} Be6 {[%emt 0:10:22]} 19. Qc3 {[%emt 0:00:00]} Qc7 {[%emt 0:04:02]} 20. h5 {[%emt 0:00:00]} g5 {[%emt 0:00:23]} 21. h6 {[%emt 0:00:00]} g6 {[%emt 0:00:31]} 22. h7 {[%emt 0:00:00]} Rab8 {[%emt 0:10:01]} 23. Bb2 {[%emt 0:00:00]} Qg7 {[%emt 0:08:34]} 24. Qa3 {[%emt 0:00:00]} f4 {[%emt 0:04:49]} 25. Be5 {[%emt 0:00:00]} Rb7 {[%emt 0:04:00]} 26. Qc3 {[%emt 0:00:00]} Rd7 {[%emt 0:08:00]} 27. Rb1 {[%emt 0:00:00]} Rdf7 {[%emt 0:05:16]} 28. a4 {[%emt 0:00:00]} Bf5 {[%emt 0:02:41]} 29. cxd5 {[%emt 0:00:00]} f3 {[%emt 0:02:27]} 30. Bf1 g4 {[%emt 0:02:46]} 31. g3 {[%emt 0:00:00]} Re8 {[%emt 0:03:27]} 32. dxc6 Be6 {[%emt 0:03:38]} 33. c7 {[%emt 0:11:00]} 1-0

[Event "XIV American Continental-ch 2019"]
[Site "Sao Paulo"]
[Date "2019.07.06"]
[Round "1.23"]
[White "Do Nascimento, Christian Almeida"]
[Black "Roselli Mailhe, Bernardo"]
[Result "0-1"]
[ECO "A45"]
[WhiteElo "2033"]
[BlackElo "2471"]
[Annotator "RC"]
[PlyCount "72"]
[EventDate "2019.07.05"]
[EventType "swiss"]
[EventCountry "BRA"]
[SourceTitle "playchess.com"]
[Source "ChessBase"]
[SourceQuality "1"]
[TimeControl "40/5400+30:1800+30"]

1. d4 {[%emt 0:00:00]} Nf6 {[%emt 0:00:00]} 2. Bg5 {[%emt 0:00:00]} e6 {[%emt 0:00:00]} 3. e4 {[%emt 0:00:19]} h6 {[%emt 0:00:00]} 4. Bxf6 Qxf6 {[%emt 0:00:00]} 5. c3 {[%emt 0:00:20]} d6 {[%emt 0:02:26]} 6. Bd3 {[%emt 0:00:41]} e5 {[%emt 0:08:45]} 7. Ne2 {[%emt 0:00:35]} g6 {[%emt 0:04:25]} 8. O-O {[%emt 0:00:43]} Bg7 {[%emt 0:00:47]} 9. f4 {[%emt 0:01:23]} Qe7 {[%emt 0:00:11]} 10. Nd2 {[%emt 0:00:38]} O-O {[%emt 1:18:26]} 11. f5 {[%emt 0:02:38]} Nd7 {[%emt 0:00:00]} 12. fxg6 fxg6 {[%emt 0:00:00]} 13. Qb3+ Kh7 {[%emt 0:00:00]} 14. Rxf8 Nxf8 {[%emt 0:00:00]} 15. Rf1 {[%emt 0:06:13]} Qg5 {[%emt 0:00:00]} 16. Nc4 {[%emt 0:01:36]} Ne6 {[%emt 0:00:00]} 17. Rf7 {[%emt 0:11:24]} h5 {[%emt 0:00:00]} 18. a4 {[%emt 0:08:30]} Kg8 {[%emt 0:00:00]} 19. Rf3 {[%emt 0:02:15]} h4 {[%emt 0:00:00]} 20. dxe5 {[%emt 0:01:44]} dxe5 {[%emt 0:00:00]} 21. Ne3 {[%emt 0:06:10]} Kh7 {[%emt 0:00:00]} 22. Bc2 {[%emt 0:55:51]} c6 {[%emt 0:06:00]} 23. h3 {[%emt 0:00:00]} Qe7 {[%emt 0:00:30]} 24. Kh2 {[%emt 0:01:00]} Ng5 {[%emt 0:00:00]} 25. Rf1 {[%emt 0:00:30]} Qc5 26. c4 Be6 {[%emt 0:00:00]} 27. Nf5 {[%emt 0:01:00]} Qxc4 {[%emt 0:00:00]} 28. Qxb7 {[%emt 0:00:00]} Rg8 {[%emt 0:00:00]} 29. Qe7 {[%emt 0:00:00]} Qxc2 {[%emt 0:00:00]} 30. Qxg5 {[%emt 0:00:00]} Qxe2 {[%emt 0:00:49]} 31. Ne7 {[%emt 0:02:00]} Bh6 {[%emt 0:01:04]} 32. Qf6 {[%emt 0:00:30]} Rg7 {[%emt 0:02:37]} 33. Rf2 {[%emt 0:00:00]} Qe3 {[%emt 0:00:30]} 34. Rf3 Bf4+ 35. g3 hxg3+ 36. Kg2 Qe2+ 0-1